[Event "French Top 16-A 2024"]
[Site "Chartres"]
[Date "2024.06.01"]
[Round "2.2"]
[White "Sankalp Gupta"]
[Black "Postny, Evgeny"]
[Result "1/2-1/2"]
[ECO "D02"]
[WhiteElo "2532"]
[BlackElo "2602"]
[Annotator "TA"]
[PlyCount "101"]
[EventDate "2024.06.01"]
[EventType "team-tourn"]
[EventCountry "FRA"]
[SourceTitle "playchess.com"]
[Source "ChessBase"]
[SourceQuality "1"]
[TimeControl "40/5400+30:1800+30"]

{[%evp 9,101,14,22,14,20,-3,8,12,8,0,0,0,0,0,-2,-6,-14,-6,-15,-17,-8,-14,0,0,37,43,39,41,41,44,31,33,24,41,28,29,31,29,18,24,44,47,50,26,21,24,24,8,24,24,37,27,54,60,53,54,46,52,62,70,70,73,58,58,72,72,72,72,78,45,39,0,47,42,43,43,43,47,70,43,46,52,52,39,31,31,34,42,35,16,27,0,0,0]} 1. Nf3 {[%emt 0:00:03]} d5 {[%emt 0:00:31]} 2. g3 {[%emt 0:00:03]} c6 {[%emt 0:00:45]} 3. Bg2 {[%emt 0:00:03]} Bg4 {[%emt 0:00:03]} 4. O-O {[%emt 0:00:25]} Nf6 {[%emt 0:00:10]} 5. d4 {[%emt 0:00:59]} e6 {[%emt 0:00:17]} 6. h3 {[%emt 0:02:49]} Bf5 {[%emt 0:02:01] [#]} 7. c4 $1 {[%emt 0:01:38]} Be7 {[%emt 0:00:19]} (7... h6 8. Nc3) 8. Nc3 {[%emt 0:02:42]} h6 {[%emt 0:01:21]} 9. Qb3 {[%emt 0:00:25]} Qb6 {[%emt 0:00:44]} 10. c5 {[%emt 0:00:21]} Qa6 {[%emt 0:02:01]} 11. Re1 {[%emt 0:09:03]} b6 $1 {[%emt 0:00:40]} 12. cxb6 {[%emt 0:00:24]} axb6 {[%emt 0:01:29]} 13. Ne5 {[%emt 0:00:04]} O-O {[%emt 0:02:33]} 14. Bf4 {[%emt 0:14:26]} Qb7 {[%emt 0:28:33]} (14... c5 {feels hotter.} 15. e4 Bxe4 16. Bxe4 c4) 15. Rac1 {[%emt 0:03:25]} (15. a3 {simplifies} Ra7 16. e4 dxe4 17. Nxe4 Bxe4 18. Bxe4 Nxe4 19. Rxe4 Bf6 20. Qc2) 15... b5 {[%emt 0:11:18]} 16. a4 {[%emt 0:11:43]} b4 {[%emt 0:02:18]} 17. e4 {[%emt 0:09:23]} dxe4 {[%emt 0:04:50]} 18. Nxe4 {[%emt 0:00:58]} Nd5 {[%emt 0:00:14]} 19. Nc5 {[%emt 0:02:56]} Qa7 {[%emt 0:04:16] [#]} 20. Ncd7 $1 {[%emt 0:21:56]} Nxd7 {[%emt 0:10:43]} 21. Nxc6 {[%emt 0:00:03]} Qxa4 {[%emt 0:00:12]} 22. Bxd5 {[%emt 0:00:12]} Bf6 {[%emt 0:00:30]} 23. Qxa4 {[%emt 0:00:20]} Rxa4 {[%emt 0:00:04]} 24. Bb3 {[%emt 0:00:06]} Raa8 {[%emt 0:01:05]} 25. g4 {[%emt 0:00:33]} ({Don't play} 25. Nxb4 Bxd4 26. Nc6 Bf6 $11 (26... Bxb2 27. Ne7+ Kh7 28. Rc7 $14)) 25... Bg6 {[%emt 0:06:42]} 26. Bd6 {[%emt 0:01:11]} ({Much worse is} 26. Nxb4 Bxd4 27. Nc6 Bxb2 28. Ne7+ Kh7) 26... Rfc8 {[%emt 0:05:22]} 27. Bxb4 {[%emt 0:00:46]} Kh7 {[%emt 0:03:37]} 28. Bd2 {[%emt 0:02:40]} Ra6 {[%emt 0:03:14]} 29. Ne5 {[%emt 0:02:02]} Rxc1 {[%emt 0:00:25]} 30. Bxc1 {[%emt 0:00:06]} Nxe5 {[%emt 0:03:10]} 31. dxe5 {[%emt 0:00:02]} Be7 {[%emt 0:01:42]} 32. Bc4 {[%emt 0:00:14]} Ra4 {[%emt 0:01:04]} 33. b3 {[%emt 0:02:04]} Ra2 {[%emt 0:00:39]} 34. Kg2 {[%emt 0:00:20]} Bb4 {[%emt 0:03:18]} 35. Re2 {[%emt 0:00:38]} Ra1 {[%emt 0:00:36]} 36. Bd2 {[%emt 0:00:53]} Be7 {[%emt 0:00:06]} 37. Re1 {[%emt 0:02:34]} Ra2 {[%emt 0:00:09]} 38. Be3 {[%emt 0:00:04]} Bb4 {[%emt 0:00:25]} 39. Re2 {[%emt 0:06:23]} Ra1 {[%emt 0:00:05]} 40. Bd2 {[%emt 0:01:03]} Be7 {[%emt 0:00:10]} 41. Bc3 {[%emt 0:30:22]} Rc1 {[%emt 0:31:41]} 42. Ba5 {[%emt 0:00:00]} Bc5 {[%emt 0:00:00]} 43. Bd2 {[%emt 0:00:00]} Rb1 {[%emt 0:00:00]} 44. h4 {[%emt 0:00:00]} h5 {[%emt 0:00:00]} 45. gxh5 {[%emt 0:00:00]} Bf5 {[%emt 0:00:00]} 46. Re1 {[%emt 0:00:00] Threatens to win with Rxb1.} Rb2 {[%emt 0:00:00]} 47. Be3 {[%emt 0:00:00]} Bxe3 {[%emt 0:00:00]} 48. Rxe3 {[%emt 0:00:00]} Kh6 {[%emt 0:00:00]} 49. Rg3 {[%emt 0:00:00]} Rb1 {[%emt 0:00:00]} 50. Bd3 {[%emt 0:05:09]} Rxb3 {[%emt 0:00:00]} 51. Bxf5 {[%emt 0:00:44] Weighted Error Value: White=0.05 (flawless) /Black=0.05 (flawless) .  Inaccurate:     	White=3     	Black=2      OK:         	White=20    	Black=27     Best:        	White=1     	Black=2      Strong:       	---       	Black=1} 1/2-1/2

[Event "French Top 16-A 2024"]
[Site "Chartres"]
[Date "2024.06.01"]
[Round "2.3"]
[White "Ganguly, Surya Shekhar"]
[Black "Laurent-Paoli, Pierre"]
[Result "1-0"]
[ECO "B12"]
[WhiteElo "2576"]
[BlackElo "2576"]
[Annotator "RC"]
[PlyCount "197"]
[EventDate "2024.06.01"]
[EventType "team-tourn"]
[EventCountry "FRA"]
[SourceTitle "playchess.com"]
[Source "ChessBase"]
[SourceQuality "1"]
[TimeControl "40/5400+30:1800+30"]

1. e4 {[%emt 0:00:25]} c6 {[%emt 0:01:03]} 2. d4 {[%emt 0:00:24]} d5 {[%emt 0:00:08]} 3. e5 {[%emt 0:00:08]} Bf5 {[%emt 0:00:16]} 4. Nf3 {[%emt 0:00:22]} e6 {[%emt 0:00:19]} 5. Be2 {[%emt 0:00:27]} c5 {[%emt 0:00:25]} 6. Be3 {[%emt 0:00:49]} Qb6 {[%emt 0:00:27]} 7. Nc3 {[%emt 0:00:49]} c4 {[%emt 0:00:51]} 8. Qc1 {[%emt 0:11:45]} Bb4 {[%emt 0:13:49]} 9. O-O {[%emt 0:02:00]} Ne7 {[%emt 0:08:08]} 10. Nd1 {[%emt 0:01:07]} Nbc6 {[%emt 0:03:51]} 11. b3 {[%emt 0:04:34]} cxb3 {[%emt 0:02:44]} 12. axb3 {[%emt 0:00:08]} Ng6 {[%emt 0:05:08]} 13. c3 {[%emt 0:03:57]} Be7 {[%emt 0:00:28]} 14. b4 {[%emt 0:04:13]} Rc8 {[%emt 0:04:43]} 15. Ne1 {[%emt 0:12:15]} Nf8 {[%emt 0:06:20]} 16. Qd2 {[%emt 0:03:30]} Nd7 {[%emt 0:02:42]} 17. Nd3 {[%emt 0:04:04]} a5 {[%emt 0:06:20]} 18. b5 {[%emt 0:07:30]} Na7 {[%emt 0:03:31]} 19. Nf4 {[%emt 0:00:45]} O-O {[%emt 0:03:10]} 20. Qa2 {[%emt 0:01:48]} Bd8 {[%emt 0:08:11]} 21. Bd2 {[%emt 0:03:04]} f6 {[%emt 0:05:11]} 22. Ne3 {[%emt 0:08:32]} fxe5 {[%emt 0:05:14]} 23. dxe5 {[%emt 0:00:27]} Nxe5 {[%emt 0:08:36]} 24. Nexd5 {[%emt 0:03:16]} exd5 {[%emt 0:01:24]} 25. Qxd5+ {[%emt 0:00:32]} Kh8 {[%emt 0:01:08]} 26. Qxe5 {[%emt 0:01:08]} Bc7 {[%emt 0:02:02]} 27. Qd4 {[%emt 0:09:44]} Rfd8 {[%emt 0:00:47]} 28. Qxb6 {[%emt 0:00:31]} Bxb6 {[%emt 0:00:02]} 29. Be3 {[%emt 0:00:18]} Bxe3 {[%emt 0:01:03]} 30. fxe3 {[%emt 0:00:06]} Rxc3 {[%emt 0:00:55]} 31. Rxa5 {[%emt 0:01:08]} Nc8 {[%emt 0:00:12]} 32. b6 {[%emt 0:02:43]} g6 {[%emt 0:00:20]} 33. Nd5 {[%emt 0:04:51]} Rc6 {[%emt 0:00:18]} 34. Bf3 {[%emt 0:00:53]} Be6 {[%emt 0:03:05]} 35. Ra8 {[%emt 0:02:00]} Bxd5 {[%emt 0:01:12]} 36. Rd1 {[%emt 0:00:34]} Kg7 {[%emt 0:01:24]} 37. Bxd5 {[%emt 0:00:28]} Rcd6 {[%emt 0:00:59]} 38. Rc1 {[%emt 0:00:27]} Nxb6 {[%emt 0:00:52]} 39. Rxd8 {[%emt 0:00:08]} Rxd8 {[%emt 0:00:04]} 40. Bxb7 {[%emt 0:00:41]} Rd7 {[%emt 0:00:42]} 41. Bf3 {[%emt 0:31:12]} Re7 {[%emt 0:04:11]} 42. Kf2 {[%emt 0:00:00]} Nd7 {[%emt 0:00:08]} 43. h4 {[%emt 0:00:00]} Ne5 {[%emt 0:01:08]} 44. Be2 {[%emt 0:00:00]} h6 {[%emt 0:02:23]} 45. Ra1 {[%emt 0:09:17]} Rb7 {[%emt 0:01:09]} 46. Ra5 {[%emt 0:00:00]} Kf6 {[%emt 0:01:22]} 47. Ra6+ {[%emt 0:00:00]} Kf7 {[%emt 0:07:13]} 48. h5 {[%emt 0:00:00]} gxh5 {[%emt 0:04:22]} 49. Bxh5+ {[%emt 0:00:00]} Kg7 {[%emt 0:00:07]} 50. Re6 {[%emt 0:00:00]} Rb5 {[%emt 0:01:47]} 51. Kg3 {[%emt 0:00:00]} Nd3 {[%emt 0:03:30]} 52. Rg6+ {[%emt 0:00:00]} Kh7 {[%emt 0:00:04]} 53. Kh4 {[%emt 0:00:00]} Ne5 {[%emt 0:03:38]} 54. Re6 {[%emt 0:00:00]} Kg7 {[%emt 0:00:10]} 55. Be2 {[%emt 0:00:00]} Ra5 {[%emt 0:00:53]} 56. Kg3 {[%emt 0:00:00]} Ng6 {[%emt 0:01:33]} 57. Bd3 {[%emt 0:00:00]} Rg5+ {[%emt 0:00:28]} 58. Kf2 {[%emt 0:00:00]} Ne5 {[%emt 0:00:14]} 59. Be4 {[%emt 0:00:00]} Ng4+ {[%emt 0:00:52]} 60. Ke2 {[%emt 0:00:00]} Ne5 {[%emt 0:01:05]} 61. Kd2 {[%emt 0:00:00]} h5 {[%emt 0:00:47]} 62. Kc3 {[%emt 0:00:00]} Kf7 {[%emt 0:01:18]} 63. Bd5 {[%emt 0:00:00]} Ng4 {[%emt 0:00:56]} 64. Kd4 {[%emt 0:00:00]} Nf6 {[%emt 0:02:07]} 65. Re5+ {[%emt 0:00:00]} Kg6 {[%emt 0:00:02]} 66. Bf7+ {[%emt 0:00:00]} Kh6 {[%emt 0:00:21]} 67. Rxg5 {[%emt 0:00:00]} Kxg5 {[%emt 0:00:02]} 68. e4 {[%emt 0:00:00]} h4 {[%emt 0:00:28]} 69. Be6 {[%emt 0:00:00]} Nh5 {[%emt 0:01:33]} 70. e5 {[%emt 0:00:00]} Nf4 {[%emt 0:01:29]} 71. Bh3 {[%emt 0:00:00]} Kg6 {[%emt 0:00:45]} 72. Kc5 {[%emt 0:00:00]} Kf7 {[%emt 0:00:12]} 73. Kd6 {[%emt 0:00:00]} Ng6 {[%emt 0:01:17]} 74. Bg4 {[%emt 0:00:00]} Ne7 {[%emt 0:00:26]} 75. Kd7 {[%emt 0:00:00]} Kf8 {[%emt 0:00:48]} 76. Ke6 {[%emt 0:00:00]} Nc6 {[%emt 0:00:48]} 77. Kf6 {[%emt 0:00:07]} Ne7 {[%emt 0:00:35]} 78. Kg5 {[%emt 0:01:57]} Kg7 {[%emt 0:00:20]} 79. e6 {[%emt 0:00:43]} Ng6 {[%emt 0:00:29]} 80. Bh3 {[%emt 0:00:30]} Ne5 {[%emt 0:00:29]} 81. Kxh4 {[%emt 0:00:22]} Kf6 {[%emt 0:00:10]} 82. Kh5 {[%emt 0:00:23]} Nd3 {[%emt 0:00:24]} 83. g3 {[%emt 0:00:34]} Nf2 {[%emt 0:01:05]} 84. Kh4 {[%emt 0:00:49]} Ne4 {[%emt 0:00:25]} 85. Bg4 {[%emt 0:00:17]} Nd6 {[%emt 0:00:29]} 86. Kh3 {[%emt 0:02:42]} Nc4 {[%emt 0:00:08]} 87. Kg2 {[%emt 0:00:34]} Nd6 {[%emt 0:01:13]} 88. Kf3 {[%emt 0:00:13]} Ke5 {[%emt 0:00:01]} 89. Bh3 {[%emt 0:01:02]} Nc8 {[%emt 0:00:48]} 90. g4 {[%emt 0:01:52]} Ne7 {[%emt 0:00:26]} 91. g5 {[%emt 0:00:05]} Ng6 {[%emt 0:00:22]} 92. Kg3 {[%emt 0:00:49]} Ne7 {[%emt 0:00:49]} 93. Kh4 {[%emt 0:00:22]} Nd5 {[%emt 0:00:34]} 94. Kh5 {[%emt 0:00:30]} Kd6 {[%emt 0:00:26]} 95. Kh6 {[%emt 0:00:28]} Ke7 {[%emt 0:00:04]} 96. g6 {[%emt 0:00:46]} Kf8 {[%emt 0:00:21]} 97. g7+ {[%emt 0:00:05]} Kg8 {[%emt 0:00:12]} 98. e7 {[%emt 0:00:07]} Nxe7 {[%emt 0:00:08]} 99. Be6# {[%emt 0:00:03]} 1-0

[Event "French Top 16-A 2024"]
[Site "Chartres"]
[Date "2024.06.01"]
[Round "2.3"]
[White "Fedorchuk, Sergey A."]
[Black "Van Foreest, Jorden"]
[Result "1/2-1/2"]
[ECO "B31"]
[WhiteElo "2546"]
[BlackElo "2665"]
[Annotator "TA"]
[PlyCount "118"]
[EventDate "2024.06.01"]
[EventType "team-tourn"]
[EventCountry "FRA"]
[SourceTitle "playchess.com"]
[Source "ChessBase"]
[SourceQuality "1"]
[TimeControl "40/5400+30:1800+30"]

{[%evp 9,118,27,35,13,24,9,30,29,77,-26,-18,-20,-16,-37,-23,-32,-37,-30,-41,-61,-11,-27,-13,-24,-24,-16,-8,-8,0,0,0,0,0,0,0,0,0,0,0,0,0,0,8,0,0,0,23,23,31,0,0,0,26,0,0,0,0,0,0,0,0,0,0,0,0,0,0,0,15,0,62,0,0,0,54,0,0,0,79,44,54,54,80,0,0,0,0,0,0,0,0,0,0,0,0,-41,-41,-41,0,-41,0,-27,0,0,0,-41,0,0,0,0,0]} 1. e4 {[%emt 0:00:04]} c5 {[%emt 0:00:36]} 2. Nf3 {[%emt 0:00:52]} Nc6 {[%emt 0:00:35]} 3. Bb5 {[%emt 0:02:57]} g6 {[%emt 0:00:28]} 4. Bxc6 {[%emt 0:01:33]} dxc6 {[%emt 0:00:13]} 5. d3 {[%emt 0:01:36]} Qc7 {[%emt 0:00:28]} 6. Nbd2 {[%emt 0:09:05][%cal Bb1d2,Bd2c4,Bc4e3][%mdl 32]} e5 {[%emt 0:00:16]} 7. Nc4 {[%emt 0:00:39]} b5 {[%emt 0:00:33]} 8. Ne3 {[%emt 0:00:30] White has an edge.} ({Don't play} 8. Ncxe5 f6 9. Bf4 Bd6 $17 (9... fxe5 $2 {too greedy.} 10. Bxe5 Qe7 11. Bxh8 $18)) 8... f5 {[%emt 0:00:07]} (8... Bg7 $11 {feels stronger.}) 9. c4 {[%emt 0:01:03]} (9. exf5 $16 {And now 0-0 would win.} gxf5 10. Nh4) 9... f4 $11 {[%emt 0:13:17]} 10. Nf1 {[%emt 0:01:45]} Nh6 {[%emt 0:05:09]} 11. Qc2 {[%emt 0:04:47][%cal Ob2b4]} Nf7 {[%emt 0:01:24]} 12. N1d2 {[%emt 0:07:36][%cal Ob2b4]} a6 {[%emt 0:03:49]} 13. b3 {[%emt 0:01:49]} Be7 {[%emt 0:01:07]} 14. Bb2 {[%emt 0:00:38]} g5 {[%emt 0:03:17]} (14... Be6 $15) 15. h3 {[%emt 0:01:01]} Be6 {[%emt 0:01:40]} 16. cxb5 {[%emt 0:10:06]} axb5 {[%emt 0:00:06]} 17. a4 {[%emt 0:00:04][%cal Ob3b4]} Qd6 {[%emt 0:03:30]} 18. Ke2 {[%emt 0:07:55]} O-O {[%emt 0:01:08]} 19. Rhc1 {[%emt 0:03:27]} h5 {[%emt 0:17:12]} 20. Ba3 $1 {[%emt 0:01:36][%cal Rc2c5]} g4 {[%emt 0:00:06]} 21. hxg4 {[%emt 0:00:37][%cal Ra3c5]} hxg4 {[%emt 0:00:05] [#] White must now prevent ...b4.} 22. Nh2 {[%emt 0:01:48][%cal Rc2c5,Bf3h2,Bh2f1,Bf1d2][%mdl 32]} b4 {[%emt 0:23:46]} 23. Bb2 {[%emt 0:00:43]} Kg7 {[%emt 0:00:19] Strongly threatening ...Rh8.} 24. Rh1 {[%emt 0:04:17]} Rh8 {[%emt 0:00:09] Hoping for ...Rh5.} 25. Rag1 {[%emt 0:00:28]} Bf6 {[%emt 0:03:47]} 26. Nc4 {[%emt 0:06:36]} Qc7 {[%emt 0:00:25]} 27. Nf1 {[%emt 0:02:15]} Rad8 {[%emt 0:00:22]} 28. Nfd2 {[%emt 0:01:48]} (28. Rxh8 {simplifies} Rxh8 29. Nfd2 Bc8 30. Qb1) 28... Bc8 {[%emt 0:00:39]} 29. Qb1 {[%emt 0:02:02]} Ba6 {[%emt 0:00:26]} 30. Rxh8 {[%emt 0:10:50]} Nxh8 {[%emt 0:00:04]} 31. f3 {[%emt 0:00:07]} g3 {[%emt 0:00:59]} 32. Rh1 {[%emt 0:00:05]} Nf7 {[%emt 0:01:49]} 33. Qa1 {[%emt 0:03:02]} Qd7 {[%emt 0:00:05]} 34. Qb1 {[%emt 0:00:03]} Kg6 {[%emt 0:07:09]} 35. Ba1 {[%emt 0:02:16]} Qc8 {[%emt 0:04:28]} 36. Qg1 {[%emt 0:01:47]} Qd7 {[%emt 0:01:58]} 37. Qb1 {[%emt 0:00:05]} Qe7 {[%emt 0:01:06]} 38. Bb2 {[%emt 0:05:39]} Re8 {[%emt 0:00:09]} 39. Qa1 {[%emt 0:00:38]} Ng5 {[%emt 0:00:08]} (39... Qd7 $11) 40. Kd1 {[%emt 0:02:09]} (40. a5 $14) 40... Qc7 {[%emt 0:02:41]} 41. Kc2 {[%emt 0:30:56]} Re7 {[%emt 0:35:25]} (41... Nf7 $1 $11) 42. Rd1 {[%emt 0:03:06]} (42. Qg1 $14) 42... Re8 {[%emt 0:00:00]} 43. Rh1 {[%emt 0:00:00]} Qg7 {[%emt 0:00:00]} (43... Re7 $11) 44. Nd6 {[%emt 0:00:00] Excellent horsemanship.} Rh8 {[%emt 0:00:00]} 45. Rxh8 {[%emt 0:00:00]} (45. Qg1 {looks sharper.} Ne6 46. N2c4 Nd4+ 47. Bxd4 cxd4 48. Nb6) 45... Qxh8 {[%emt 0:02:00]} 46. Qg1 {[%emt 0:00:00]} ({Better is} 46. N6c4 $16) 46... Ne6 {[%emt 0:00:00]} 47. N2c4 {[%emt 0:00:00]} Nd4+ {[%emt 0:00:00]} (47... Qh2 $5 48. Qf1 $8 Qh5 $15) 48. Bxd4 {[%emt 0:00:00]} cxd4 {[%emt 0:00:00]} 49. Kd2 {[%emt 0:00:00]} Bd8 {[%emt 0:00:00]} 50. Qc1 {[%emt 0:00:25]} c5 {[%emt 0:00:00]} (50... Bc7 $5) 51. Ke2 {[%emt 0:01:53]} Bc7 {[%emt 0:00:00]} 52. Nf5 {[%emt 0:01:50]} Qh2 {[%emt 0:00:00]} 53. Qf1 {[%emt 0:00:10]} Kf6 {[%emt 0:00:00] Inhibits Ne7.} 54. Ke1 {[%emt 0:00:28]} Bc8 {[%emt 0:00:00]} 55. Ke2 {[%emt 0:00:06]} Be6 {[%emt 0:00:00][%cal Oe6c4]} 56. Nd2 {[%emt 0:00:27]} Bf7 {[%emt 0:00:00]} 57. Nc4 {[%emt 0:00:13]} Qh8 {[%emt 0:00:00]} 58. Qc1 {[%emt 0:00:43]} Qh2 {[%emt 0:00:00]} 59. Qf1 {[%emt 0:00:04]} Qh8 {[%emt 0:00:00] Weighted Error Value: White=0.13 (very precise) /Black=0.11 (very precise) .  Mistake:       	White=4     	Black=5      Inaccurate:     	White=7     	Black=6      OK:         	White=22    	Black=22     Best:        	White=2     	Black=3      Strong:       	White=1     	---} 1/2-1/2

[Event "French Top 16-A 2024"]
[Site "Chartres"]
[Date "2024.06.01"]
[Round "2.4"]
[White "Albornoz Cabrera, Carlos Daniel"]
[Black "Bailet, Pierre"]
[Result "1/2-1/2"]
[ECO "C65"]
[WhiteElo "2612"]
[BlackElo "2492"]
[Annotator "TA"]
[PlyCount "122"]
[EventDate "2024.06.01"]
[EventType "team-tourn"]
[EventCountry "FRA"]
[SourceTitle "playchess.com"]
[Source "ChessBase"]
[SourceQuality "1"]
[TimeControl "40/5400+30:1800+30"]

{[%evp 45,122,7,36,35,39,44,43,25,56,39,57,10,49,40,45,33,30,30,101,106,104,111,108,108,106,115,111,99,98,101,86,86,86,86,86,86,86,44,44,44,44,44,44,44,44,44,59,59,59,41,41,41,41,41,41,41,41,41,41,41,41,41,41,41,41,41,41,41,41,41,41,41,41,41,41,0,41,0,41]} 1. e4 {[%emt 0:00:02]} e5 {[%emt 0:00:15]} 2. Nf3 {[%emt 0:00:04]} Nc6 {[%emt 0:00:10]} 3. Bb5 {[%emt 0:00:02]} Nf6 {[%emt 0:00:28]} 4. d3 {[%emt 0:00:03]} Bc5 {[%emt 0:00:11]} 5. O-O {[%emt 0:00:05]} Nd4 {[%emt 0:00:58]} 6. Nxd4 {[%emt 0:00:05]} Bxd4 {[%emt 0:00:04]} 7. c3 {[%emt 0:00:04] C65: Ruy Lopez: Berlin Defence (3...Nf6), unusual lines and 4 0-0 Bc5.} Bb6 {[%emt 0:00:07]} 8. Ba4 {[%emt 0:00:02]} c6 {[%emt 0:00:45]} 9. Na3 {[%emt 0:00:04]} d6 {[%emt 0:00:14]} 10. Bc2 {[%emt 0:01:41]} O-O {[%emt 0:05:58] 10...0-0 was played by the boomers.} 11. Bg5 {[%emt 0:00:04]} h6 {[%emt 0:00:07]} 12. Bh4 {[%emt 0:00:03]} g5 {[%emt 0:03:28]} 13. Bg3 {[%emt 0:00:04]} Bg4 {[%emt 0:00:11]} 14. Qd2 {[%emt 0:04:37]} Be6 $146 {[%emt 0:06:09]} ({Predecessor:} 14... Nh5 15. Nc4 Bc7 16. d4 Qe7 17. Ne3 Bd7 18. Rad1 Rad8 19. Qe2 Nf4 20. Qf3 Qf6 {1-0 So,W (2765)-Navara,D (2738) Saint Louis Champions Showdown rapid 2019 (2.3)}) 15. Bd1 {[%emt 0:06:47]} Nd7 {[%emt 0:26:23]} 16. d4 {[%emt 0:24:21]} Qf6 {[%emt 0:17:43]} 17. Nc2 {[%emt 0:07:21]} d5 {[%emt 0:00:20]} 18. exd5 {[%emt 0:03:02]} cxd5 {[%emt 0:02:43]} 19. dxe5 {[%emt 0:10:20]} Nxe5 {[%emt 0:00:10]} 20. Bxe5 {[%emt 0:00:21]} Qxe5 {[%emt 0:00:10]} 21. Re1 {[%emt 0:00:32]} Qf6 {[%emt 0:01:36]} 22. Nd4 {[%emt 0:00:31]} a5 {[%emt 0:08:27]} 23. Bc2 {[%emt 0:04:20]} Bxd4 {[%emt 0:04:18]} 24. cxd4 {[%emt 0:37:55]} Rfc8 {[%emt 0:00:38]} 25. Re5 {[%emt 0:00:00]} Rc4 {[%emt 0:04:38]} 26. Bd3 {[%emt 0:00:00]} (26. Rf1 {is more complex.} Qf4 27. Qd3 Kf8 28. Rd1) 26... Rb4 {[%emt 0:03:10]} (26... Rxd4 $6 27. Bh7+ Kxh7 28. Qxd4 $16) 27. a3 {[%emt 0:00:00]} Rb6 {[%emt 0:00:10]} (27... Rxd4 $2 28. Bh7+ Kxh7 29. Qxd4 $18) 28. Rc1 {[%emt 0:00:00]} (28. Rae1 $14 {is superior.}) 28... Rc6 {[%emt 0:04:58]} 29. Rxc6 {[%emt 0:00:00]} bxc6 {[%emt 0:00:06]} 30. Qc3 {[%emt 0:00:00]} Rb8 {[%emt 0:01:18]} 31. Bc2 {[%emt 0:00:00]} (31. Qxa5 Rxb2 32. Qe1 Kg7 $17) 31... c5 {[%emt 0:07:49]} (31... Kg7 $11 {keeps the balance.}) 32. dxc5 $16 {[%emt 0:00:00]} (32. Qxc5 $2 Rc8 (32... Rxb2 33. Qc3 $11) 33. Qxa5 Rxc2 $19) 32... Rb5 {[%emt 0:00:12] [#]} 33. Bd3 $1 {[%emt 0:00:16]} Rxc5 {[%emt 0:00:58]} 34. Rxg5+ {[%emt 0:00:35]} (34. Qxc5 Qxe5 35. Qc3 d4 $11) 34... Qxg5 {[%emt 0:00:20]} 35. Qxc5 {[%emt 0:00:02]} Qd2 {[%emt 0:01:20]} 36. Qc3 {[%emt 0:00:39]} Qd1+ {[%emt 0:00:23]} 37. Bf1 {[%emt 0:00:01]} Bf5 {[%emt 0:00:57]} 38. Qf3 {[%emt 0:03:20]} (38. Qxa5 $2 {perishes.} Bd3 39. h3 Bxf1 $19 (39... Qxf1+ $2 40. Kh2 $19)) 38... Qxf3 {[%emt 0:00:03]} 39. gxf3 {[%emt 0:00:03]} Kf8 {[%emt 0:00:54]} 40. Bb5 {[%emt 0:01:21]} Ke7 {[%emt 0:00:23]} 41. Kf1 {[%emt 0:30:52]} Kd6 {[%emt 0:30:37]} 42. Ke2 {[%emt 0:00:00]} Kc5 $1 {[%emt 0:00:00]} 43. Bd3 {[%emt 0:00:00]} Bd7 {[%emt 0:00:00]} 44. Ke3 {[%emt 0:00:00]} d4+ {[%emt 0:00:00]} 45. Kd2 {[%emt 0:00:00]} f6 {[%emt 0:00:00]} 46. f4 {[%emt 0:00:00]} Be6 {[%emt 0:00:00]} 47. h4 {[%emt 0:00:00]} Bd7 {[%emt 0:00:00]} 48. Bb1 {[%emt 0:00:00]} Be6 {[%emt 0:00:00]} 49. Bc2 {[%emt 0:00:00]} Bd7 {[%emt 0:00:00]} 50. Bb3 {[%emt 0:00:00]} Bf5 {[%emt 0:00:00]} 51. Bf7 {[%emt 0:00:00]} Bd7 {[%emt 0:00:00]} 52. Bg6 {[%emt 0:00:00]} Bb5 {[%emt 0:00:00]} 53. Bf5 {[%emt 0:00:00]} Bc4 {[%emt 0:00:00]} 54. Bd7 {[%emt 0:00:00]} Ba6 {[%emt 0:00:00]} 55. b3 {[%emt 0:00:00]} Bb7 {[%emt 0:00:00]} 56. Bf5 {[%emt 0:00:31]} Bd5 {[%emt 0:00:00]} 57. Bc2 {[%emt 0:00:06]} Be6 {[%emt 0:00:00]} 58. Bd1 {[%emt 0:02:25]} Bf5 {[%emt 0:00:00]} 59. Be2 {[%emt 0:01:28]} Be6 {[%emt 0:00:00]} 60. Bd1 {[%emt 0:00:23]} Bf5 {[%emt 0:00:00]} 61. Bc2 {[%emt 0:01:23]} Be6 {[%emt 0:00:00]} 1/2-1/2